bitfinex/quotes_BTCUSD_20250808
["timestamp","ask_amount","ask_price","bid_price","bid_amount"]
[1754675295097,0.00625175,116690.0,116680.0,0.74613251]
[1754675296142,0.00625175,116690.0,116680.0,0.74577251]
[1754675296767,0.00625175,116690.0,116680.0,0.37508011]
[1754675296883,0.00625175,116690.0,116680.0,0.74577251]
[1754675297108,0.00836175,116690.0,116680.0,0.13240898]
[1754675297343,0.00836175,116690.0,116680.0,0.27076898]
[1754675297561,0.17975604,116690.0,116680.0,0.13936]
[1754675297769,0.17975604,116690.0,116680.0,0.31076898]
[1754675298875,0.00836175,116690.0,116680.0,0.31076898]
[1754675299204,0.00836175,116690.0,116680.0,0.30276898]
[1754675300692,0.17975604,116690.0,116680.0,0.30276898]
[1754675302214,0.00836175,116690.0,116680.0,0.30276898]
[1754675305668,0.00836175,116690.0,116680.0,0.67346138]
[1754675306072,0.00836175,116690.0,116680.0,0.30276898]
[1754675306274,0.00836175,116690.0,116680.0,0.29476898]
[1754675309474,0.17975604,116690.0,116680.0,0.29476898]
[1754675309630,0.17975604,116690.0,116680.0,0.17140898]
[1754675309803,0.17975604,116690.0,116680.0,0.30968898]
[1754675310446,0.17975604,116690.0,116680.0,0.13828]
[1754675311499,0.17975604,116690.0,116680.0,0.13824]
[1754675312430,0.17140898,116680.0,116660.0,0.58946249]
[1754675312632,0.17650367,116670.0,116660.0,0.24946249]
[1754675312877,0.00508,116670.0,116660.0,0.38770249]
[1754675313024,0.00508,116670.0,116660.0,0.39892248]
[1754675313229,0.00508,116670.0,116660.0,0.39035057]
[1754675314098,0.00508,116670.0,116660.0,0.39892248]
[1754675314729,0.00508,116670.0,116660.0,0.39992248]
[1754675315254,0.00508,116670.0,116660.0,0.40092248]
[1754675315664,0.00508,116670.0,116660.0,0.39992248]
[1754675316134,0.00508,116670.0,116660.0,0.40092248]
[1754675317873,0.00508,116670.0,116660.0,0.33144486]
[1754675320496,0.00508,116670.0,116660.0,0.32344486]
[1754675325686,0.00304,116670.0,116660.0,0.69413726]
[1754675326204,0.17140898,116680.0,116670.0,0.17142367]
[1754675326380,0.17648898,116680.0,116670.0,0.17142367]
[1754675327560,0.00508,116680.0,116670.0,0.17142367]
[1754675327967,0.00608,116680.0,116670.0,0.17242367]
[1754675328222,0.00608,116680.0,116670.0,0.16442367]
[1754675329209,0.17748898,116680.0,116670.0,0.31054367]
[1754675329607,0.00608,116680.0,116670.0,0.17242367]
[1754675329845,0.00608,116680.0,116670.0,0.31054367]
[1754675335295,0.00608,116680.0,116670.0,0.30254367]
[1754675335498,0.00608,116680.0,116670.0,0.67323607]
[1754675335731,0.001,116680.0,116670.0,0.67323607]
[1754675336141,0.001,116680.0,116670.0,0.30254367]
[1754675336315,0.001,116680.0,116670.0,0.67323607]
[1754675337783,0.001,116680.0,116670.0,0.30254367]
[1754675339738,0.001,116680.0,116670.0,0.67323607]
[1754675340217,0.001,116680.0,116670.0,0.30254367]
[1754675340421,0.0042,116680.0,116670.0,0.30254367]
[1754675342333,0.0042,116680.0,116670.0,0.29454367]
[1754675342524,0.00621,116680.0,116670.0,0.29446367]
[1754675343322,0.17761898,116680.0,116670.0,0.29446367]
[1754675343490,0.17761898,116680.0,116670.0,0.30946367]
[1754675349402,0.17761898,116680.0,116670.0,0.30146367]
[1754675350584,0.17761898,116680.0,116670.0,0.67215607]
[1754675351006,0.17761898,116680.0,116670.0,0.30146367]
[1754675351224,0.00621,116680.0,116670.0,0.30146367]
[1754675351412,0.0042,116680.0,116670.0,0.30146367]
[1754675352091,0.0042,116680.0,116670.0,0.67215607]
[1754675353459,0.00621,116680.0,116670.0,0.67215607]
[1754675354476,0.00621,116680.0,116670.0,0.30146367]
[1754675356388,0.00621,116680.0,116670.0,0.29346367]
[1754675357103,0.0042,116680.0,116670.0,0.66415607]
[1754675357318,0.001,116680.0,116670.0,0.66415607]
[1754675360405,0.001,116680.0,116670.0,0.7684672]
[1754675360614,0.001,116680.0,116670.0,1.1795096]
[1754675362070,0.001,116680.0,116670.0,0.4381248]
[1754675362419,0.001,116680.0,116670.0,1.1795096]
[1754675363475,0.001,116680.0,116670.0,1.5195096]
[1754675363692,0.001,116680.0,116670.0,1.5115096]
[1754675364518,0.001,116680.0,116670.0,1.53673968]
[1754675364917,0.001,116680.0,116670.0,0.79535488]
[1754675365182,0.001,116680.0,116670.0,1.53673968]
[1754675367551,0.001,116680.0,116670.0,0.79535488]
[1754675367731,0.001,116680.0,116670.0,1.53673968]
[1754675370685,0.001,116680.0,116670.0,1.52873968]
[1754675371210,0.001,116680.0,116670.0,0.79078688]
[1754675371418,0.001,116680.0,116670.0,1.53217168]
[1754675374810,0.001,116680.0,116670.0,0.79078688]
[1754675375001,0.001,116680.0,116670.0,1.53217168]
[1754675376866,0.001,116680.0,116670.0,0.79078688]
[1754675377100,0.001,116680.0,116670.0,1.5616814]
[1754675377593,0.00014175,116690.0,116680.0,0.51140898]
[1754675377809,0.00014175,116690.0,116680.0,1.48682491]
[1754675378226,0.00014175,116690.0,116680.0,1.11613251]
[1754675378453,0.00014175,116690.0,116680.0,0.74544011]
[1754675378659,0.00014175,116690.0,116680.0,1.11613251]
[1754675379072,0.00014175,116690.0,116680.0,1.55742463]
[1754675379339,0.00014175,116690.0,116680.0,1.52891491]
[1754675379709,0.00014175,116690.0,116680.0,1.52791491]
[1754675379932,0.00014175,116690.0,116680.0,0.78853011]
[1754675380340,0.00014175,116690.0,116680.0,1.52991491]
[1754675381096,0.00014175,116690.0,116680.0,0.78953011]
[1754675381260,0.00014175,116690.0,116680.0,1.60039253]
[1754675383231,0.00014175,116690.0,116680.0,1.53091491]
[1754675383455,0.00014175,116690.0,116680.0,1.16022251]
[1754675383676,0.00014175,116690.0,116680.0,1.53091491]
[1754675384653,0.00014175,116690.0,116680.0,1.53175491]
[1754675384927,0.00014175,116690.0,116680.0,1.52375491]
[1754675385664,0.00014175,116690.0,116680.0,0.64381011]
[1754675385873,0.00324175,116690.0,116680.0,1.11221251]
[1754675386079,0.00014175,116690.0,116680.0,1.11221251]
[1754675387161,0.00537175,116690.0,116680.0,0.60272011]
[1754675387370,0.00537175,116690.0,116680.0,0.97341251]
[1754675387586,0.00537175,116690.0,116680.0,0.61596349]
[1754675387829,0.00537175,116690.0,116680.0,0.75476349]
[1754675388036,0.00537175,116690.0,116680.0,0.77221251]
[1754675388273,0.00537175,116690.0,116680.0,1.11221251]
[1754675389200,0.00537175,116690.0,116680.0,0.74152011]
[1754675389415,0.00537175,116690.0,116680.0,1.11221251]
[1754675390835,0.00537175,116690.0,116680.0,1.13795351]
[1754675391071,0.00537175,116690.0,116680.0,1.40375351]
[1754675391923,0.00537175,116690.0,116680.0,1.02506111]
[1754675392136,0.00537175,116690.0,116680.0,1.39575351]
[1754675394803,0.00537175,116690.0,116680.0,1.02506111]
[1754675395016,0.00537175,116690.0,116680.0,1.39575351]
[1754675396657,0.00537175,116690.0,116680.0,1.39607351]
[1754675397237,0.00537175,116690.0,116680.0,0.88626111]
[1754675397449,0.00537175,116690.0,116680.0,1.39607351]
[1754675398215,0.00537175,116690.0,116680.0,1.02538111]
[1754675398413,0.00537175,116690.0,116680.0,1.39607351]
[1754675399043,0.00537175,116690.0,116680.0,1.38807351]
[1754675400009,0.00537175,116690.0,116680.0,1.01738111]
[1754675400226,0.00537175,116690.0,116680.0,1.38807351]
[1754675400434,0.00537175,116690.0,116680.0,0.41142111]
[1754675402012,0.17676604,116690.0,116680.0,0.16814998]
[1754675402223,0.17676604,116690.0,116680.0,0.30714998]
[1754675402428,0.17676604,116690.0,116680.0,0.28140898]
[1754675402642,0.17676604,116690.0,116680.0,0.142]
[1754675402863,0.17676604,116690.0,116680.0,0.31240898]
[1754675403109,0.17676604,116690.0,116680.0,0.31244898]
[1754675403322,0.17676604,116690.0,116680.0,0.002]
[1754675403522,0.17676604,116690.0,116680.0,0.14104]
[1754675403732,0.21158062,116690.0,116680.0,0.14104]
[1754675403956,0.17676604,116690.0,116680.0,0.31244898]
[1754675404158,0.17976604,116690.0,116680.0,0.31340898]
[1754675404995,0.17976604,116690.0,116680.0,0.14204]
[1754675406049,0.17140898,116680.0,116670.0,0.37722367]
[1754675406262,0.17337898,116680.0,116670.0,0.51618367]
[1754675406476,0.19246793,116680.0,116670.0,0.2058]
[1754675406692,0.17630898,116680.0,116670.0,0.34488]
[1754675407153,0.17630898,116680.0,116670.0,0.51630367]
[1754675407563,0.17830898,116680.0,116670.0,0.51730367]
[1754675410721,0.0069,116680.0,116670.0,0.51730367]
[1754675411870,0.0079,116680.0,116670.0,0.51730367]
[1754675413421,0.0079,116680.0,116670.0,0.87999607]
[1754675413564,0.00593,116680.0,116670.0,0.9843072]
[1754675413971,0.003,116680.0,116670.0,0.9843072]
[1754675414440,0.003,116680.0,116670.0,0.6393628]
[1754675414676,0.00593,116680.0,116670.0,1.0100552]
[1754675415880,0.00593,116680.0,116670.0,0.6393628]
[1754675416082,0.00593,116680.0,116670.0,1.0100552]
[1754675417275,0.00593,116680.0,116670.0,0.6393628]
[1754675417494,0.00593,116680.0,116670.0,1.0100552]
[1754675417710,0.00593,116680.0,116670.0,0.6393628]
[1754675417924,0.00593,116680.0,116670.0,1.0100552]
[1754675418774,0.00593,116680.0,116670.0,0.6393628]
[1754675418948,0.0079,116680.0,116670.0,0.6393628]
[1754675419811,0.0079,116680.0,116670.0,0.5002828]
[1754675420015,0.0079,116680.0,116670.0,0.6394828]
[1754675420206,0.0079,116680.0,116670.0,0.6314828]
[1754675421247,0.0079,116680.0,116670.0,0.4416828]
[1754675423892,0.0079,116680.0,116670.0,0.8123752]
[1754675424043,0.00593,116680.0,116670.0,0.8123752]
[1754675425235,0.0079,116680.0,116670.0,0.8123752]
[1754675425918,0.0079,116680.0,116670.0,0.4416828]
[1754675426406,0.0079,116680.0,116670.0,0.3024828]
[1754675426724,0.0079,116680.0,116670.0,0.4414828]
[1754675427286,0.0079,116680.0,116670.0,0.4334828]
[1754675427501,0.0079,116680.0,116670.0,0.4077348]
[1754675434316,0.0079,116680.0,116670.0,0.4078148]
[1754675434524,0.0079,116680.0,116670.0,0.3998148]
[1754675442312,0.0079,116680.0,116670.0,0.3918148]
[1754675443476,0.0079,116680.0,116670.0,0.28690367]
[1754675448412,0.17930898,116680.0,116670.0,0.14842367]
[1754675448653,0.21439354,116680.0,116670.0,0.28654367]
[1754675448863,0.17930898,116680.0,116670.0,0.13912]
[1754675449417,0.17930898,116680.0,116670.0,0.30254367]
[1754675451108,0.0079,116680.0,116670.0,0.30254367]
[1754675451683,0.17930898,116680.0,116670.0,0.30254367]
[1754675453120,0.17143836,116660.0,116650.0,0.17145306]
[1754675453374,0.00517,116660.0,116650.0,0.31029306]
[1754675454486,0.00617,116660.0,116650.0,0.31129306]
[1754675454686,0.001,116660.0,116650.0,1.02298546]
[1754675454865,0.001,116660.0,116650.0,1.03298389]
[1754675455472,0.001,116660.0,116650.0,0.66229149]
[1754675455704,0.001,116660.0,116650.0,1.03298389]
[1754675455908,0.001,116660.0,116650.0,0.66229149]
[1754675456112,0.001,116660.0,116650.0,1.03298389]
[1754675456519,0.001,116660.0,116650.0,1.02498389]
[1754675459158,0.001,116660.0,116650.0,0.65429149]
[1754675459360,0.001,116660.0,116650.0,1.02498389]
[1754675460154,0.00405,116660.0,116650.0,1.02498389]
[1754675460361,0.00405,116660.0,116650.0,0.65429149]
[1754675460775,0.00405,116660.0,116650.0,1.02498389]
[1754675461458,0.00405,116660.0,116650.0,0.65429149]
[1754675461698,0.00405,116660.0,116650.0,1.02498389]
[1754675462624,0.00405,116660.0,116650.0,0.65429149]
[1754675462849,0.00405,116660.0,116650.0,1.02498389]
[1754675463333,0.00405,116660.0,116650.0,0.65429149]
[1754675463802,0.00405,116660.0,116650.0,1.02498389]
[1754675464015,0.00405,116660.0,116650.0,0.65429149]
[1754675464218,0.00405,116660.0,116650.0,1.02498389]
[1754675464426,0.00405,116660.0,116650.0,1.01698389]
[1754675465966,0.00405,116660.0,116650.0,0.64629149]
[1754675466183,0.00405,116660.0,116650.0,1.01698389]
[1754675467072,0.001,116660.0,116650.0,1.12129502]
[1754675467298,0.001,116660.0,116650.0,0.75060262]
[1754675467552,0.001,116660.0,116650.0,1.12129502]
[1754675467775,0.001,116660.0,116650.0,1.19077264]
[1754675470280,0.001,116660.0,116650.0,1.12129502]
[1754675470937,0.001,116660.0,116650.0,0.78129502]
[1754675471593,0.001,116660.0,116650.0,0.77329502]
[1754675474891,0.001,116660.0,116650.0,0.79904502]
[1754675476211,0.001,116660.0,116650.0,0.77329502]
[1754675476424,0.001,116660.0,116650.0,0.79904602]
[1754675477352,0.001,116660.0,116650.0,0.42835362]
[1754675477783,0.001,116660.0,116650.0,0.79904602]
[1754675478194,0.001,116660.0,116650.0,0.42835362]
[1754675478403,0.00405,116660.0,116650.0,0.79904602]
[1754675478607,0.00617,116660.0,116650.0,0.42035362]
[1754675478810,0.00617,116660.0,116650.0,0.39460262]
[1754675479060,0.00617,116660.0,116650.0,0.76529502]
[1754675480575,0.00617,116660.0,116650.0,0.39460262]
[1754675481023,0.00617,116660.0,116650.0,0.76529502]
[1754675481612,0.00617,116660.0,116650.0,0.25576262]
[1754675481848,0.00617,116660.0,116650.0,0.28949149]
[1754675482058,0.17760836,116660.0,116650.0,0.28949149]
[1754675482978,0.00617,116660.0,116650.0,0.28849149]
[1754675483709,0.00517,116660.0,116650.0,0.28749149]
[1754675483921,0.00517,116660.0,116650.0,0.65818389]
[1754675484142,0.00617,116660.0,116650.0,0.28849149]
[1754675484351,0.00617,116660.0,116650.0,0.65918389]
[1754675485660,0.00617,116660.0,116650.0,0.65118389]
[1754675488447,0.00405,116660.0,116650.0,0.75549502]
[1754675489329,0.00606,116660.0,116650.0,0.75549502]
[1754675489536,0.00606,116660.0,116650.0,0.78124702]
[1754675491024,0.00606,116660.0,116650.0,0.41055462]
[1754675491254,0.00606,116660.0,116650.0,0.78124702]
[1754675491781,0.00606,116660.0,116650.0,0.41055462]
[1754675492004,0.00606,116660.0,116650.0,0.78124702]
[1754675492834,0.00606,116660.0,116650.0,0.77324702]
[1754675493395,0.00606,116660.0,116650.0,0.40255462]
[1754675493631,0.17749836,116660.0,116650.0,0.40255462]
[1754675494188,0.00606,116660.0,116650.0,0.29824349]
[1754675494409,0.17749836,116660.0,116650.0,0.29824349]
[1754675495268,0.17749836,116660.0,116650.0,0.164792]
[1754675495473,0.17749836,116660.0,116650.0,0.33624506]
[1754675495890,0.00606,116660.0,116650.0,0.71678037]
[1754675496322,0.00606,116660.0,116650.0,0.34608797]
[1754675496516,0.00606,116660.0,116650.0,0.71678037]
[1754675497196,0.00606,116660.0,116650.0,0.34608797]
[1754675497406,0.00606,116660.0,116650.0,0.71678037]
[1754675497830,0.00606,116660.0,116650.0,0.34608797]
[1754675498037,0.00606,116660.0,116650.0,0.71678037]
[1754675499661,0.001,116660.0,116650.0,0.8210915]
[1754675499861,0.001,116660.0,116650.0,0.4423991]
[1754675500151,0.001,116660.0,116650.0,0.8130915]
[1754675500350,0.001,116660.0,116650.0,0.4423991]
[1754675500574,0.001,116660.0,116650.0,0.8130915]
[1754675502165,0.001,116660.0,116650.0,0.8516515]
[1754675505154,0.001,116660.0,116650.0,0.4809591]
[1754675505361,0.001,116660.0,116650.0,0.8516515]
[1754675506467,0.001,116660.0,116650.0,1.1174515]
[1754675508120,0.001,116660.0,116650.0,1.1094515]
[1754675508323,0.001,116660.0,116650.0,1.4494515]
[1754675509183,0.001,116660.0,116650.0,1.0787591]
[1754675509608,0.001,116660.0,116650.0,1.4494515]
[1754675510924,0.001,116660.0,116650.0,1.0787591]
[1754675511130,0.001,116660.0,116650.0,1.4494515]
[1754675511343,0.001,116660.0,116650.0,1.0787591]
[1754675511558,0.001,116660.0,116650.0,1.4494515]
[1754675514440,0.001,116660.0,116650.0,1.5397715]
[1754675514647,0.001,116660.0,116650.0,1.4494515]
[1754675515224,0.001,116660.0,116650.0,1.4414515]
[1754675515640,0.001,116660.0,116650.0,1.0707591]
[1754675515845,0.001,116660.0,116650.0,1.4414515]
[1754675516239,0.001,116660.0,116650.0,1.0707591]
[1754675516474,0.001,116660.0,116650.0,1.4414515]
[1754675517548,0.00398,116660.0,116650.0,1.4028915]
[1754675520662,0.00398,116660.0,116650.0,1.0321991]
[1754675520875,0.00398,116660.0,116650.0,1.4028915]
[1754675522571,0.001,116660.0,116650.0,1.0241991]
[1754675522758,0.001,116660.0,116650.0,1.3948915]
[1754675522983,0.001,116660.0,116650.0,1.4206385]
[1754675523202,0.00307,116660.0,116650.0,0.9171541]
[1754675523420,0.00605,116660.0,116650.0,1.4258065]
[1754675525356,0.00605,116660.0,116650.0,1.0551141]
[1754675525574,0.00605,116660.0,116650.0,1.4258065]
[1754675528100,0.00605,116660.0,116650.0,1.0551141]
[1754675528314,0.00605,116660.0,116650.0,1.4258065]
[1754675529123,0.00605,116660.0,116650.0,1.0551141]
[1754675529329,0.00605,116660.0,116650.0,1.4258065]
[1754675529548,0.00605,116660.0,116650.0,1.4178065]
[1754675530115,0.00605,116660.0,116650.0,1.0471141]
[1754675530360,0.00605,116660.0,116650.0,1.4178065]
[1754675534535,0.00398,116660.0,116650.0,1.4178065]
[1754675535822,0.001,116660.0,116650.0,1.4178065]
[1754675536553,0.001,116660.0,116650.0,1.4098065]
[1754675540491,0.001,116660.0,116650.0,1.0391141]
[1754675540697,0.001,116660.0,116650.0,1.4098065]
[1754675542787,0.001,116660.0,116650.0,1.78012968]
[1754675543291,0.00328175,116690.0,116680.0,0.188858]
[1754675543520,0.00525175,116690.0,116680.0,1.15465569]
[1754675543772,0.00525175,116690.0,116680.0,1.14665569]
[1754675544018,0.00525175,116690.0,116680.0,1.17239969]
[1754675544404,0.00925175,116690.0,116680.0,1.17239969]
[1754675544850,0.00925175,116690.0,116680.0,0.43138411]
[1754675545059,0.00525175,116690.0,116680.0,0.92524509]
[1754675546104,0.00525175,116690.0,116680.0,0.43138411]
[1754675546327,0.00625175,116690.0,116680.0,0.43238411]
[1754675546540,0.00625175,116690.0,116680.0,0.92624509]
[1754675548016,0.00625175,116690.0,116680.0,0.43238411]
[1754675548234,0.00625175,116690.0,116680.0,0.92624509]
[1754675549269,0.00625175,116690.0,116680.0,0.43238411]
[1754675549427,0.00625175,116690.0,116680.0,0.92624509]
[1754675550357,0.00428175,116690.0,116680.0,0.92624509]
[1754675551660,0.00428175,116690.0,116680.0,0.43238411]
[1754675551878,0.00428175,116690.0,116680.0,0.92624509]
[1754675553245,0.00428175,116690.0,116680.0,0.42438411]
[1754675553450,0.00428175,116690.0,116680.0,0.91824509]
[1754675554069,0.00428175,116690.0,116680.0,0.42438411]
[1754675554300,0.00428175,116690.0,116680.0,0.91824509]
[1754675556099,0.00428175,116690.0,116680.0,0.42438411]
[1754675556312,0.00428175,116690.0,116680.0,0.91824509]
[1754675556520,0.00625175,116690.0,116680.0,0.42438411]
[1754675556930,0.00625175,116690.0,116680.0,0.91824509]
[1754675558197,0.00625175,116690.0,116680.0,0.42438411]
[1754675558408,0.00625175,116690.0,116680.0,0.91824509]
[1754675558845,0.00625175,116690.0,116680.0,0.42438411]
[1754675559055,0.00625175,116690.0,116680.0,0.91824509]
[1754675559267,0.00625175,116690.0,116680.0,0.42438411]
[1754675559475,0.00625175,116690.0,116680.0,0.91824509]
[1754675559682,0.00625175,116690.0,116680.0,0.28646411]
[1754675559892,0.00625175,116690.0,116680.0,0.32043298]
[1754675560103,0.00625175,116690.0,116680.0,0.29468898]
[1754675560518,0.00625175,116690.0,116680.0,0.28668898]
[1754675561149,0.17764604,116690.0,116680.0,0.28668898]
[1754675561361,0.17764604,116690.0,116680.0,0.28672898]
[1754675564634,0.17764604,116690.0,116680.0,0.31072898]
[1754675565720,0.00625175,116690.0,116680.0,0.31072898]
[1754675568256,0.00625175,116690.0,116680.0,0.30272898]
[1754675570748,0.17764604,116690.0,116680.0,0.30272898]
[1754675571058,0.00625175,116690.0,116680.0,0.30272898]
[1754675572272,0.17764604,116690.0,116680.0,0.30272898]
[1754675575175,0.17764604,116690.0,116680.0,0.29472898]
[1754675576846,0.21254884,116690.0,116670.0,0.19716967]
[1754675577021,0.17140898,116680.0,116670.0,0.17142367]
[1754675577257,0.00515,116680.0,116670.0,0.30946367]
[1754675578094,0.00515,116680.0,116670.0,0.31046367]
[1754675578509,0.00515,116680.0,116670.0,0.30946367]
[1754675579009,0.17755898,116680.0,116670.0,0.31146367]
[1754675579581,0.21246848,116680.0,116670.0,0.002]
[1754675579785,0.21246848,116680.0,116670.0,0.13996]
[1754675580097,0.17755898,116680.0,116670.0,0.13996]
[1754675580912,0.17655898,116680.0,116670.0,0.13896]
[1754675581118,0.17655898,116680.0,116670.0,0.13796]
[1754675581488,0.17755898,116680.0,116670.0,0.13796]
[1754675581704,0.17855898,116680.0,116670.0,0.13896]
[1754675582123,0.17855898,116680.0,116670.0,0.13796]
[1754675582329,0.17855898,116680.0,116670.0,0.12996]
[1754675582548,0.18155898,116680.0,116670.0,0.12996]
[1754675583785,0.17143703,116670.0,116650.0,0.39688697]
[1754675584000,0.17143703,116670.0,116660.0,0.13796]
[1754675584202,0.17358703,116670.0,116660.0,0.13796]
[1754675584417,0.17658703,116670.0,116660.0,0.13796]
[1754675584825,0.17658703,116670.0,116650.0,0.25215808]
[1754675585046,0.17558703,116670.0,116660.0,0.13796]
[1754675585244,0.17143836,116660.0,116650.0,0.17245306]
[1754675585533,0.17358836,116660.0,116650.0,0.30941306]
[1754675585764,0.17658836,116660.0,116650.0,0.30941306]
[1754675586190,0.00515,116660.0,116650.0,0.30941306]
[1754675586394,0.17658836,116660.0,116650.0,0.30941306]
[1754675586600,0.00515,116660.0,116650.0,0.30941306]
[1754675586998,0.17658836,116660.0,116650.0,0.31894643]
[1754675587204,0.00515,116660.0,116650.0,0.31894643]
[1754675587759,0.00615,116660.0,116650.0,0.31994643]
[1754675588313,0.17758836,116660.0,116650.0,0.31994643]
[1754675588652,0.00615,116660.0,116650.0,0.31994643]
[1754675589497,0.004,116660.0,116650.0,0.31194643]
[1754675589695,0.004,116660.0,116650.0,0.80580741]
[1754675590108,0.001,116660.0,116650.0,0.80580741]
[1754675590311,0.001,116660.0,116650.0,0.91011854]
[1754675590878,0.001,116660.0,116650.0,0.41625756]
[1754675591089,0.001,116660.0,116650.0,0.91011854]
[1754675591300,0.001,116660.0,116650.0,0.93587054]
[1754675592143,0.001,116660.0,116650.0,0.44200956]
[1754675592555,0.001,116660.0,116650.0,0.93587054]
[1754675593628,0.001,116660.0,116650.0,0.44200956]
[1754675593808,0.001,116660.0,116650.0,0.93587054]
[1754675596543,0.001,116660.0,116650.0,0.92787054]
[1754675599740,0.001,116660.0,116650.0,0.43400956]
[1754675599969,0.001,116660.0,116650.0,0.92787054]
[1754675603687,0.001,116660.0,116650.0,0.91987054]
[1754675605404,0.00422,116660.0,116650.0,0.42600956]
[1754675605541,0.00422,116660.0,116650.0,0.91987054]
[1754675606384,0.00625,116660.0,116650.0,0.42600956]
[1754675608847,0.00625,116660.0,116650.0,0.91987054]
[1754675609042,0.00625,116660.0,116650.0,0.42600956]
[1754675609524,0.00625,116660.0,116650.0,0.91987054]
[1754675609941,0.00422,116660.0,116650.0,0.91987054]
[1754675610356,0.00422,116660.0,116650.0,0.42600956]
[1754675610565,0.00422,116660.0,116650.0,0.91987054]
[1754675610778,0.00422,116660.0,116650.0,0.91187054]
[1754675610985,0.00422,116660.0,116650.0,0.41800956]
[1754675611201,0.00422,116660.0,116650.0,0.91187054]
[1754675613660,0.00422,116660.0,116650.0,0.41800956]
[1754675613862,0.00422,116660.0,116650.0,0.91187054]
[1754675614935,0.00625,116660.0,116650.0,0.91187054]
[1754675615336,0.00625,116660.0,116650.0,0.41800956]
[1754675617251,0.00625,116660.0,116650.0,0.91187054]
[1754675617731,0.00625,116660.0,116650.0,0.76591054]
[1754675618135,0.00625,116660.0,116650.0,0.41000956]
[1754675619309,0.00625,116660.0,116650.0,0.27204956]
[1754675619518,0.00625,116660.0,116650.0,0.41000956]
[1754675619719,0.00625,116660.0,116650.0,0.27204956]
[1754675619984,0.00625,116660.0,116650.0,0.90387054]
[1754675624091,0.001,116660.0,116650.0,0.90387054]
[1754675624918,0.001,116660.0,116650.0,0.89587054]
[1754675625099,0.00422,116660.0,116650.0,0.89587054]
[1754675628404,0.00422,116660.0,116650.0,0.40200956]
[1754675628634,0.00422,116660.0,116650.0,0.89587054]
[1754675629199,0.00422,116660.0,116650.0,0.40200956]
[1754675629408,0.00625,116660.0,116650.0,0.89587054]
[1754675630537,0.00625,116660.0,116650.0,0.40200956]
[1754675630986,0.00625,116660.0,116650.0,0.89587054]
[1754675631992,0.00625,116660.0,116650.0,0.88787054]
[1754675632215,0.00625,116660.0,116650.0,0.39400956]
[1754675632425,0.00625,116660.0,116650.0,0.88787054]
[1754675636780,0.00625,116660.0,116650.0,0.76466258]
[1754675637393,0.00625,116660.0,116650.0,0.39400956]
[1754675637593,0.00625,116660.0,116650.0,0.76466258]
[1754675638594,0.00625,116660.0,116650.0,0.39400956]
[1754675638800,0.00625,116660.0,116650.0,0.76466258]
[1754675638996,0.00625,116660.0,116650.0,0.75666258]
[1754675640971,0.00625,116660.0,116650.0,0.61870258]
[1754675641202,0.00625,116660.0,116650.0,0.75658258]
[1754675641827,0.00625,116660.0,116650.0,0.38592956]
[1754675642033,0.00625,116660.0,116650.0,0.75658258]
[1754675642596,0.00625,116660.0,116650.0,0.38592956]
[1754675643218,0.17768836,116660.0,116650.0,0.14373843]
[1754675643418,0.21259964,116660.0,116650.0,0.28157843]
[1754675643625,0.17768836,116660.0,116650.0,0.27204506]
[1754675644061,0.17768836,116660.0,116650.0,0.164592]
[1754675644185,0.17768836,116660.0,116650.0,0.33604506]
[1754675644902,0.17768836,116660.0,116650.0,0.31029306]
[1754675646086,0.17768836,116660.0,116650.0,0.67294608]
[1754675646318,0.00625,116660.0,116650.0,0.67294608]
[1754675646535,0.00625,116660.0,116650.0,0.30229306]
[1754675646747,0.00625,116660.0,116650.0,0.67294608]
[1754675646969,0.00422,116660.0,116650.0,0.67294608]
[1754675647384,0.00422,116660.0,116650.0,0.69869908]
[1754675648004,0.00422,116660.0,116650.0,0.32804606]
[1754675648209,0.00422,116660.0,116650.0,0.69869908]
[1754675648821,0.00422,116660.0,116650.0,0.82224355]
[1754675650783,0.00422,116660.0,116650.0,0.79649055]
[1754675651107,0.00636,116660.0,116650.0,0.79649055]
[1754675653106,0.00636,116660.0,116650.0,0.78849055]
[1754675654663,0.00636,116660.0,116650.0,0.29429306]
[1754675654879,0.17779836,116660.0,116650.0,0.18220706]
[1754675655055,0.17779836,116660.0,116650.0,0.31996706]
[1754675655883,0.17779836,116660.0,116650.0,0.163514]
[1754675656322,0.21272064,116660.0,116650.0,0.025754]
[1754675656546,0.17146574,116650.0,116630.0,0.14801577]
[1754675656756,0.17146574,116650.0,116640.0,0.163517]
[1754675657202,0.17360574,116650.0,116640.0,0.163517]
[1754675657420,0.17680574,116650.0,116640.0,0.163517]
[1754675657636,0.21597957,116650.0,116640.0,0.163517]
[1754675657852,0.21897957,116650.0,116640.0,0.163517]
[1754675658064,0.18080574,116650.0,116640.0,0.33498476]
[1754675659611,0.17780574,116650.0,116640.0,0.33498476]
[1754675659815,0.17980574,116650.0,116640.0,0.33498476]
[1754675660161,0.17980574,116650.0,116640.0,0.32698476]
[1754675663895,0.17980574,116650.0,116640.0,0.18922476]
[1754675664312,0.17980574,116650.0,116640.0,0.32694476]
[1754675665341,0.17980574,116650.0,116640.0,0.18922476]
[1754675665649,0.17980574,116650.0,116640.0,0.32694476]
[1754675665852,0.17980574,116650.0,116640.0,0.18922476]
[1754675666055,0.00834,116650.0,116640.0,0.18922476]
[1754675666231,0.00834,116650.0,116640.0,0.32694476]
[1754675667227,0.17979306,116650.0,116640.0,0.30118776]
[1754675667429,0.17979306,116650.0,116640.0,0.16346776]
[1754675667644,0.17979306,116650.0,116640.0,0.30118776]
[1754675668847,0.00834,116650.0,116640.0,0.30118776]
[1754675669453,0.17979306,116650.0,116640.0,0.30118776]
[1754675671858,0.21577339,116650.0,116640.0,0.13772]
[1754675672594,0.17979306,116650.0,116640.0,0.13772]
[1754675673042,0.17979306,116650.0,116640.0,0.30918776]
[1754675674494,0.17979306,116650.0,116640.0,0.30118776]
[1754675676674,0.00834,116650.0,116640.0,0.67195886]
[1754675677086,0.00834,116650.0,116640.0,0.30118776]
[1754675677421,0.00834,116650.0,116640.0,0.67195886]
[1754675677784,0.00834,116650.0,116640.0,0.30118776]
[1754675677939,0.00834,116650.0,116640.0,0.67195886]
[1754675678935,0.00834,116650.0,116640.0,0.30118776]
[1754675681659,0.00834,116650.0,116640.0,0.67195822]
[1754675682194,0.00834,116650.0,116640.0,0.30118776]
[1754675682405,0.00834,116650.0,116640.0,0.29318776]
[1754675682747,0.00834,116650.0,116640.0,0.17146776]